[Event "98th Caplin Hastings Masters 2024-25"]
[Site "Hastings"]
[Date "2024.12.31"]
[Round "6.45"]
[White "Wilson, Matthew R"]
[Black "Han, Yongsu"]
[Result "1-0"]
[ECO "C54"]
[WhiteElo "1766"]
[BlackElo "1718"]
[Annotator "NA"]
[PlyCount "101"]
[EventDate "2024.12.23"]
[EventType "swiss"]
[EventCountry "ENG"]
[SourceTitle "playchess.com"]
[Source "ChessBase"]
[SourceQuality "1"]
[TimeControl "5400+30"]

1. e4 {[%emt 0:00:02]} e5 {[%emt 0:00:05]} 2. Nf3 {[%emt 0:00:10]} Nc6 {[%emt 0:00:04]} 3. Bc4 {[%emt 0:00:22]} Bc5 {[%emt 0:00:13]} 4. c3 {[%emt 0:00:21]} Nf6 {[%emt 0:00:10]} 5. d3 {[%emt 0:00:23]} O-O {[%emt 0:00:47]} 6. Bb3 {[%emt 0:00:26]} d5 {[%emt 0:00:56]} 7. exd5 {[%emt 0:01:07]} Nxd5 {[%emt 0:00:29]} 8. O-O {[%emt 0:00:09]} Bg4 {[%emt 0:02:53]} 9. Nbd2 {[%emt 0:01:31]} Nf4 {[%emt 0:04:42]} 10. Ne4 {[%emt 0:04:40]} Nxd3 {[%emt 0:05:57]} 11. Bc2 {[%emt 0:00:31]} f5 {[%emt 0:00:41]} 12. Bxd3 {[%emt 0:03:48]} fxe4 {[%emt 0:01:11]} 13. Qb3+ {[%emt 0:01:42]} Kh8 {[%emt 0:00:31]} 14. Bxe4 {[%emt 0:00:24]} Bb6 {[%emt 0:07:18]} 15. Ng5 {[%emt 0:08:56]} Be2 {[%emt 0:02:23]} 16. Nf7+ {[%emt 0:09:32]} Rxf7 {[%emt 0:00:07]} 17. Qxf7 {[%emt 0:00:04]} Bxf1 {[%emt 0:00:09]} 18. Qh5 {[%emt 0:00:45]} Qg8 {[%emt 0:00:37]} 19. Kxf1 {[%emt 0:05:44]} Rd8 {[%emt 0:14:52]} 20. Qe2 {[%emt 0:06:07]} Qf7 {[%emt 0:07:15]} 21. Be3 {[%emt 0:01:24]} Bxe3 {[%emt 0:14:39]} 22. Qxe3 {[%emt 0:00:10]} Qh5 {[%emt 0:03:45]} 23. h3 {[%emt 0:08:54]} Na5 {[%emt 0:06:06]} 24. Bf3 {[%emt 0:01:38]} Qf7 {[%emt 0:04:45]} 25. b3 {[%emt 0:44:10]} Qf5 {[%emt 0:08:21]} 26. Re1 {[%emt 0:00:00]} Nc6 {[%emt 0:06:46]} 27. Bxc6 {[%emt 0:00:00]} bxc6 {[%emt 0:00:05]} 28. Qxe5 {[%emt 0:00:00]} Qd3+ {[%emt 0:01:10]} 29. Kg1 {[%emt 0:00:00]} h6 {[%emt 0:01:26]} 30. Qxc7 {[%emt 0:00:00]} Rf8 {[%emt 0:04:01]} 31. Qe5 {[%emt 0:00:00]} Qd2 {[%emt 0:00:53]} 32. Re2 {[%emt 0:00:00]} Qc1+ {[%emt 0:00:17]} 33. Kh2 {[%emt 0:00:00]} Qf1 {[%emt 0:01:56]} 34. Qe3 {[%emt 0:00:00]} a6 {[%emt 0:00:56]} 35. f3 {[%emt 0:00:00]} Qd1 {[%emt 0:00:39]} 36. Qd2 {[%emt 0:00:00]} Qxd2 {[%emt 0:00:51]} 37. Rxd2 {[%emt 0:00:00]} Re8 {[%emt 0:00:08]} 38. Kg3 {[%emt 0:00:00]} Re5 {[%emt 0:00:36]} 39. Kf4 {[%emt 0:00:00]} Rc5 {[%emt 0:00:43]} 40. c4 {[%emt 0:00:00]} a5 {[%emt 0:00:08]} 41. Re2 {[%emt 0:00:00]} Rg5 {[%emt 0:00:55]} 42. g4 {[%emt 0:00:00]} a4 {[%emt 0:00:09]} 43. Re6 {[%emt 0:00:00]} axb3 {[%emt 0:00:44]} 44. axb3 {[%emt 0:00:00]} Ra5 {[%emt 0:00:39]} 45. Rxc6 {[%emt 0:00:00]} Kg8 {[%emt 0:00:20]} 46. b4 {[%emt 0:00:00]} Ra7 {[%emt 0:00:13]} 47. Kf5 {[%emt 0:00:00]} Rf7+ {[%emt 0:00:47]} 48. Kg6 {[%emt 0:00:00]} Rf8 {[%emt 0:00:09]} 49. b5 {[%emt 0:00:00]} h5 {[%emt 0:00:58]} 50. b6 {[%emt 0:00:00]} hxg4 {[%emt 0:00:26]} 51. hxg4 {[%emt 0:00:10]} 1-0

[Event "98th Caplin Hastings Masters 2024-25"]
[Site "Hastings"]
[Date "2024.12.31"]
[Round "6.46"]
[White "Dette, Jan"]
[Black "Miller, Daniel"]
[Result "1/2-1/2"]
[ECO "B23"]
[WhiteElo "2102"]
[BlackElo "2093"]
[Annotator "TA"]
[PlyCount "61"]
[EventDate "2024.12.23"]
[EventType "swiss"]
[EventCountry "ENG"]
[SourceTitle "playchess.com"]
[Source "ChessBase"]
[SourceQuality "1"]
[TimeControl "5400+30"]

{[%evp 9,61,17,68,51,61,59,66,42,38,47,39,55,135,151,142,22,90,0,0,-16,-17,-26,-22,-11,-8,-17,28,8,35,0,0,-160,0,0,0,0,126,136,120,0,0,0,0,0,0,0,0,0,0,0,0,0,0,0]} 1. e4 {[%emt 0:00:02]} c5 {[%emt 0:00:03]} 2. Nc3 {[%emt 0:00:07]} d6 {[%emt 0:00:04]} 3. Bb5+ {[%emt 0:00:09]} Nd7 {[%emt 0:00:08]} 4. a4 {[%emt 0:00:15]} Ngf6 {[%emt 0:00:50]} 5. f4 {[%emt 0:00:56]} e5 {[%emt 0:05:25]} (5... e6 $11) 6. d3 {[%emt 0:03:19]} Be7 {[%emt 0:02:46]} 7. Nf3 {[%emt 0:02:21]} O-O {[%emt 0:10:59]} 8. f5 {[%emt 0:06:58] White is more active.} d5 {[%emt 0:11:35]} 9. Bxd7 {[%emt 0:03:06]} Bxd7 {[%emt 0:04:24]} 10. Nxe5 {[%emt 0:00:10]} Bd6 {[%emt 0:01:25]} (10... dxe4 $14 11. dxe4 Re8) 11. Nxd7 $16 {[%emt 0:01:14]} Qxd7 {[%emt 0:01:54]} 12. O-O {[%emt 0:03:53]} (12. exd5 Rae8+ (12... Qxf5 13. Qf3 $11) 13. Kf1 h5 $17 (13... Qxf5+ 14. Qf3 $11)) ({White has to play} 12. Bg5 $16) 12... Qc7 {[%emt 0:08:05]} (12... dxe4 $11 13. Bg5 (13. Nxe4 Nxe4 14. dxe4 Rad8 $11) (13. dxe4 Rfe8 $11) 13... exd3) 13. g3 {[%emt 0:01:04]} (13. Nxd5 $16 Bxh2+ 14. Kh1 Nxd5 15. exd5) 13... Bxg3 $11 {[%emt 0:04:26]} 14. Qe2 {[%emt 0:01:02]} Be5 {[%emt 0:01:48]} 15. Nxd5 {[%emt 0:06:51]} Nxd5 {[%emt 0:00:36]} 16. exd5 {[%emt 0:00:05]} Rfe8 {[%emt 0:09:51]} 17. Qg2 {[%emt 0:00:54]} f6 {[%emt 0:00:10][%mdl 1024] Black has compensation.} 18. c4 {[%emt 0:13:25]} Re7 {[%emt 0:02:29]} 19. Rb1 {[%emt 0:11:16]} Rae8 {[%emt 0:04:21]} 20. b4 $2 {[%emt 0:04:41]} (20. Kh1 $11) 20... Bd4+ $2 {[%emt 0:06:39]} (20... cxb4 $17 {...Bd6 is the strong threat.} 21. Qf2 Bc3) 21. Kh1 {[%emt 0:00:09]} Re2 {[%emt 0:01:43]} 22. Bf4 $1 {[%emt 0:05:27]} Rxg2 {[%emt 0:11:36]} (22... Qd7 $11 {remains equal.} 23. Qf3 cxb4) 23. Bxc7 $16 {[%emt 0:00:05]} Ree2 {[%emt 0:00:05] [#]} 24. bxc5 {[%emt 0:02:44]} (24. Rfe1 $1 $16 {[%cal Re1e2]} Rc2 25. Re8+ Kf7 26. Rh8 (26. Rbe1 Be5 $17) 26... cxb4 27. Bd6) 24... Be5 $1 $11 {[%emt 0:01:08]} 25. Bxe5 {[%emt 0:00:05]} (25. Rxb7 $2 Rxh2+ 26. Kg1 Reg2#) 25... fxe5 {[%emt 0:00:06][%mdl 4096] Endgame KRR-KRR. White is two pawns up.} 26. Rf3 {[%emt 0:00:17]} (26. Rxb7 $2 {leads to mate.} Rxh2+ 27. Kg1 Reg2#) 26... Rxh2+ {[%emt 0:01:43]} 27. Kg1 {[%emt 0:00:05][%cal Of3g3]} Reg2+ {[%emt 0:00:08]} 28. Kf1 {[%emt 0:00:07][%cal Of5f6]} Rc2 {[%emt 0:00:58][%cal Rh2h1]} 29. Rg3 {[%emt 0:01:59][%cal Of1g1] Kg1! is the strong threat.} (29. Rxb7 $2 Rh1#) 29... Rh1+ $1 {[%emt 0:01:03]} 30. Rg1 {[%emt 0:00:04]} Rhh2 {[%emt 0:00:23]} 31. Rg3 {[%emt 0:33:10]} (31. Rxb7 $2 Rc1#) 1/2-1/2

[Event "98th Caplin Hastings Masters 2024-25"]
[Site "Hastings"]
[Date "2024.12.31"]
[Round "6.47"]
[White "Flynn, David"]
[Black "Norinkeviciute, Rasa"]
[Result "1/2-1/2"]
[ECO "B23"]
[WhiteElo "1834"]
[BlackElo "1952"]
[Annotator "NA RC"]
[PlyCount "54"]
[EventDate "2024.12.23"]
[EventType "swiss"]
[EventCountry "ENG"]
[SourceTitle "playchess.com"]
[Source "ChessBase"]
[SourceQuality "1"]
[TimeControl "5400+30"]

1. e4 {[%emt 0:00:17]} c5 {[%emt 0:00:57]} 2. Nc3 {[%emt 0:00:05]} Nc6 {[%emt 0:00:51]} 3. Bb5 {[%emt 0:00:04]} Nd4 {[%emt 0:00:21]} 4. Nf3 {[%emt 0:00:04]} Nxb5 {[%emt 0:04:36]} 5. Nxb5 {[%emt 0:01:04]} a6 {[%emt 0:00:24]} 6. Nc3 {[%emt 0:00:04]} d6 {[%emt 0:00:20]} 7. d4 {[%emt 0:00:20]} cxd4 {[%emt 0:00:05]} 8. Qxd4 {[%emt 0:00:08]} e6 {[%emt 0:01:13]} 9. Bg5 {[%emt 0:01:57]} f6 {[%emt 0:03:24]} 10. Be3 {[%emt 0:01:08]} Ne7 {[%emt 0:00:37]} 11. O-O-O {[%emt 0:03:16]} Nc6 {[%emt 0:01:06]} 12. Qd2 {[%emt 0:00:33]} Qa5 {[%emt 0:02:30]} 13. Kb1 {[%emt 0:01:42]} Be7 {[%emt 0:01:11]} 14. g4 {[%emt 0:00:36]} O-O {[%emt 0:03:48]} 15. h4 {[%emt 0:03:34]} Bd7 {[%emt 0:08:54]} 16. g5 {[%emt 0:07:53]} f5 {[%emt 0:01:15]} 17. g6 {[%emt 0:03:21]} f4 {[%emt 0:11:59]} 18. gxh7+ {[%emt 0:06:38]} Kh8 {[%emt 0:00:37]} 19. Bxf4 {[%emt 0:00:07]} e5 {[%emt 0:00:46]} 20. Bg5 {[%emt 0:02:48]} Bg4 {[%emt 0:26:56]} 21. Bxe7 {[%emt 0:16:18]} Nxe7 {[%emt 0:09:52]} 22. Qxd6 {[%emt 0:07:52]} Bxf3 {[%emt 0:04:26]} 23. Qxe7 {[%emt 0:04:00]} Rae8 {[%emt 0:00:32]} 24. Qd7 {[%emt 0:07:53]} Rd8 {[%emt 0:00:35]} 25. Qe7 {[%emt 0:01:27]} Rde8 {[%emt 0:01:14]} 26. Qd7 {[%emt 0:00:14]} Rd8 {[%emt 0:01:58]} 27. Qe7 {[%emt 0:00:08]} Rde8 {[%emt 0:00:54]} 1/2-1/2

[Event "98th Caplin Hastings Masters 2024-25"]
[Site "Hastings"]
[Date "2024.12.31"]
[Round "6.48"]
[White "Bryant, Marc A"]
[Black "Fryer, David W"]
[Result "0-1"]
[ECO "A00"]
[WhiteElo "1825"]
[BlackElo "1928"]
[Annotator "NA RC"]
[PlyCount "34"]
[EventDate "2024.12.23"]
[EventType "swiss"]
[EventCountry "ENG"]
[SourceTitle "playchess.com"]
[Source "ChessBase"]
[SourceQuality "1"]
[TimeControl "5400+30"]

1. a3 {[%emt 0:00:01]} f5 {[%emt 0:02:42]} 2. e4 {[%emt 0:00:18]} e5 {[%emt 0:03:14]} 3. exf5 {[%emt 0:01:47]} Nf6 {[%emt 0:02:00]} 4. Be2 {[%emt 0:00:41]} Bc5 {[%emt 0:06:04]} 5. Bh5+ {[%emt 0:00:33]} Kf8 {[%emt 0:00:47]} 6. b4 {[%emt 0:00:54]} Bb6 {[%emt 0:02:58]} 7. Bb2 {[%emt 0:01:23]} d6 {[%emt 1:16:15]} 8. g4 {[%emt 0:01:51]} Nc6 {[%emt 0:00:00]} 9. Nf3 {[%emt 0:01:41]} e4 {[%emt 0:00:00]} 10. Ng5 {[%emt 0:01:41]} Nxh5 {[%emt 0:00:00]} 11. Nxe4 {[%emt 0:01:56]} Nf6 {[%emt 0:00:00]} 12. Nxf6 {[%emt 0:00:29]} gxf6 {[%emt 0:00:00]} 13. g5 {[%emt 0:00:30]} Qe7+ {[%emt 0:00:00]} 14. Kf1 {[%emt 0:02:24]} Bxf5 {[%emt 0:00:00]} 15. Qf3 {[%emt 0:00:57]} Qe6 {[%emt 0:00:00]} 16. Bxf6 {[%emt 0:07:33]} Bh3+ {[%emt 0:00:00]} 17. Kg1 {[%emt 0:02:35]} Qe1# {[%emt 0:00:00]} 0-1

[Event "98th Caplin Hastings Masters 2024-25"]
[Site "Hastings"]
[Date "2024.12.31"]
[Round "6.50"]
[White "Graham, Oliver"]
[Black "Kim, Nayoon B"]
[Result "0-1"]
[ECO "B72"]
[WhiteElo "1789"]
[BlackElo "1663"]
[Annotator "NA"]
[PlyCount "166"]
[EventDate "2024.12.23"]
[EventType "swiss"]
[EventCountry "ENG"]
[SourceTitle "playchess.com"]
[Source "ChessBase"]
[SourceQuality "1"]
[TimeControl "5400+30"]

1. e4 {[%emt 0:00:06]} c5 {[%emt 0:00:02]} 2. Nc3 {[%emt 0:00:08]} Nc6 {[%emt 0:00:27]} 3. Nf3 {[%emt 0:00:15]} Nf6 {[%emt 0:01:39]} 4. d4 {[%emt 0:00:14]} cxd4 {[%emt 0:02:08]} 5. Nxd4 {[%emt 0:00:12]} d6 {[%emt 0:14:01]} 6. Be2 {[%emt 0:00:19]} g6 {[%emt 0:09:07]} 7. Be3 {[%emt 0:00:35]} Bg7 {[%emt 0:01:18]} 8. Qd2 {[%emt 0:00:33]} Bd7 {[%emt 0:00:47]} 9. f3 {[%emt 0:00:38]} a6 {[%emt 0:03:01]} 10. a3 {[%emt 0:00:57]} b5 {[%emt 0:01:44]} 11. O-O {[%emt 0:01:00]} Nxd4 {[%emt 0:01:07]} 12. Bxd4 {[%emt 0:00:27]} O-O {[%emt 0:00:07]} 13. Rad1 {[%emt 0:00:39]} Bc6 {[%emt 0:04:21]} 14. Kh1 {[%emt 0:03:08]} Qc7 {[%emt 0:04:32]} 15. Qe3 {[%emt 0:01:53]} Qb7 {[%emt 0:07:46]} 16. Rfe1 {[%emt 0:02:10]} a5 {[%emt 0:08:24]} 17. e5 {[%emt 0:01:30]} dxe5 {[%emt 0:04:41]} 18. Bxe5 {[%emt 0:00:31]} b4 {[%emt 0:04:32]} 19. axb4 {[%emt 0:09:49]} axb4 {[%emt 0:01:12]} 20. Nb1 {[%emt 0:03:35]} Rfc8 {[%emt 0:09:07]} 21. Qf2 {[%emt 0:04:01]} Ng4 {[%emt 0:02:54]} 22. fxg4 {[%emt 0:01:28]} Bxe5 {[%emt 0:00:04]} 23. b3 {[%emt 0:01:55]} Bg7 {[%emt 0:09:23]} 24. Bc4 {[%emt 0:01:29]} Rf8 {[%emt 0:03:59]} 25. Nd2 {[%emt 0:03:59]} Qa7 {[%emt 0:01:51]} 26. Qe2 {[%emt 0:01:15]} e5 {[%emt 0:05:16]} 27. Ne4 {[%emt 0:01:19]} Bxe4 {[%emt 0:00:00]} 28. Qxe4 {[%emt 0:00:35]} Rad8 {[%emt 0:00:00]} 29. Bd5 {[%emt 0:03:14]} Qc5 {[%emt 0:00:00]} 30. Rf1 {[%emt 0:01:17]} Qe7 {[%emt 0:00:15]} 31. Rd3 {[%emt 0:04:40]} Rd7 {[%emt 0:01:14]} 32. Rdf3 {[%emt 0:01:29]} Qd8 {[%emt 0:00:41]} 33. Bc4 {[%emt 0:01:51]} Qc7 {[%emt 0:00:20]} 34. h3 {[%emt 0:02:40]} Qb7 {[%emt 0:00:15]} 35. Qe1 {[%emt 0:01:54]} Rc7 {[%emt 0:00:42]} 36. Qf2 {[%emt 0:00:38]} e4 {[%emt 0:00:33]} 37. Rf4 {[%emt 0:06:53]} Be5 {[%emt 0:00:23]} 38. g5 {[%emt 0:01:32]} Bxf4 {[%emt 0:00:24]} 39. Qxf4 {[%emt 0:00:25]} Re7 {[%emt 0:00:02]} 40. Re1 {[%emt 0:02:59]} Rfe8 {[%emt 0:00:38]} 41. Re3 {[%emt 0:02:01]} Qa7 {[%emt 0:00:25]} 42. h4 {[%emt 0:02:02]} Qa1+ {[%emt 0:00:16]} 43. Kh2 {[%emt 0:02:48]} Qe5 {[%emt 0:00:05]} 44. Kg3 {[%emt 0:01:19]} Kg7 {[%emt 0:00:58]} 45. Kg4 {[%emt 0:01:29]} Qxf4+ {[%emt 0:00:08]} 46. Kxf4 {[%emt 0:00:11]} Re5 {[%emt 0:00:15]} 47. g4 {[%emt 0:00:52]} R5e7 {[%emt 0:01:35]} 48. Kg3 {[%emt 0:02:21]} Rd8 {[%emt 0:00:39]} 49. Kf4 {[%emt 0:01:04]} Kf8 {[%emt 0:00:55]} 50. Re2 {[%emt 0:02:43]} Rd1 {[%emt 0:00:31]} 51. Rxe4 {[%emt 0:05:07]} Rxe4+ {[%emt 0:00:07]} 52. Kxe4 {[%emt 0:00:12]} Rd2 {[%emt 0:00:06]} 53. Bd3 {[%emt 0:00:31]} Rh2 {[%emt 0:00:05]} 54. h5 {[%emt 0:02:07]} gxh5 {[%emt 0:00:24]} 55. gxh5 {[%emt 0:00:29]} Rxh5 {[%emt 0:00:32]} 56. Kf4 {[%emt 0:00:15]} Kg7 {[%emt 0:00:25]} 57. Kg4 {[%emt 0:00:31]} Rh1 {[%emt 0:00:08]} 58. Kf4 {[%emt 0:00:26]} f6 {[%emt 0:00:56]} 59. gxf6+ {[%emt 0:00:27]} Kxf6 {[%emt 0:00:03]} 60. Ke4 {[%emt 0:01:05]} Rg1 {[%emt 0:00:35]} 61. Kd4 {[%emt 0:00:13]} Rg4+ {[%emt 0:00:28]} 62. Kc5 {[%emt 0:00:14]} h5 {[%emt 0:00:20]} 63. Be2 {[%emt 0:01:02]} Kf5 {[%emt 0:02:07]} 64. Bd3+ {[%emt 0:01:54]} Kg5 {[%emt 0:00:18]} 65. Bf1 {[%emt 0:00:50]} h4 {[%emt 0:00:49]} 66. Bh3 {[%emt 0:00:30]} Rg3 {[%emt 0:00:27]} 67. Bd7 {[%emt 0:00:54]} Rc3+ {[%emt 0:00:44]} 68. Kxb4 {[%emt 0:00:21]} Rxc2 {[%emt 0:00:02]} 69. Ka5 {[%emt 0:00:34]} Rc7 {[%emt 0:00:51]} 70. Be6 {[%emt 0:00:31]} Re7 {[%emt 0:00:32]} 71. Bc8 {[%emt 0:00:31]} Rc7 {[%emt 0:00:33]} 72. Be6 {[%emt 0:00:25]} Rc3 {[%emt 0:00:34]} 73. b4 {[%emt 0:00:27]} Ra3+ {[%emt 0:00:05]} 74. Kb6 {[%emt 0:00:36]} Kf6 {[%emt 0:00:24]} 75. Bd5 {[%emt 0:01:06]} Ke5 {[%emt 0:00:13]} 76. Bc6 {[%emt 0:00:43]} Kd6 {[%emt 0:00:44]} 77. b5 {[%emt 0:00:38]} h3 {[%emt 0:00:33]} 78. Kb7 {[%emt 0:00:30]} h2 {[%emt 0:00:45]} 79. Kb6 {[%emt 0:03:44]} Ra1 {[%emt 0:00:30]} 80. Kb7 {[%emt 0:00:33]} h1=Q {[%emt 0:00:32]} 81. Bxh1 {[%emt 0:00:07]} Rxh1 {[%emt 0:00:10]} 82. Kb6 {[%emt 0:01:25]} Rb1 {[%emt 0:00:07]} 83. Ka7 {[%emt 0:02:04]} Rxb5 {[%emt 0:00:10]} 0-1